bitfinex/quotes_ETHUSD_20250219
["timestamp","ask_amount","ask_price","bid_price","bid_amount"]
[1739992825158,4.20453,2721.1,2720.3,3.67595]
[1739992825486,3.67519,2721.0,2720.3,7.35193]
[1739992825860,3.67519,2721.0,2720.4,3.67589]
[1739992826154,3.67543,2720.8,2720.1,7.35243]
[1739992826339,3.67566,2720.6,2720.0,3.67645]
[1739992826538,0.7931,2720.5,2719.6,6.67698]
[1739992826919,0.7931,2720.9,2720.5,3.67579]
[1739992827118,0.7931,2720.9,2720.3,3.67606]
[1739992827119,4.46835,2720.9,2720.3,3.67606]
[1739992827276,0.7931,2720.9,2720.5,3.67577]
[1739992827770,0.7931,2720.9,2720.6,3.67553]
[1739992828127,0.7651,2721.2,2720.8,3.67538]
[1739992828267,0.7651,2721.2,2720.8,3.67531]
[1739992828472,1.0491,2721.5,2720.8,3.67531]
[1739992828694,4.72361,2721.5,2720.9,3.67515]
[1739992828872,0.7651,2721.5,2720.8,3.67531]
[1739992829073,0.7651,2721.5,2720.8,0.4863963]
[1739992829272,3.67485,2721.2,2720.5,3.67579]
[1739992829795,3.67501,2721.1,2720.5,3.67579]
[1739992830033,0.7511,2720.9,2720.4,3.67584]
[1739992830186,4.42643,2720.9,2720.3,3.676]
[1739992830374,0.7511,2720.9,2720.4,3.67581]
[1739992830720,0.7753,2721.2,2720.8,3.67538]
[1739992831219,4.45016,2721.2,2720.6,3.67556]
[1739992831512,0.7753,2721.2,2720.4,0.446601]
[1739992831724,4.45016,2721.2,2720.2,0.7902]
[1739992831892,4.45016,2721.2,2720.6,3.67564]
[1739992832071,5.562647,2721.2,2720.6,3.67564]
[1739992832279,0.06461954,2721.1,2720.2,0.7902]
[1739992832499,0.06461954,2721.1,2720.8,3.67538]
[1739992832890,0.06461954,2721.1,2720.6,3.67559]
[1739992833087,0.06461954,2721.1,2720.7,3.67552]
[1739992833506,0.06461954,2721.1,2721.0,3.67511]
[1739992833710,0.06461954,2721.1,2720.8,3.67529]
[1739992833903,0.7753,2721.2,2720.8,3.67529]
[1739992834313,0.7753,2721.2,2720.9,3.67525]
[1739992834514,0.7753,2721.2,2720.8,3.67529]
[1739992835188,3.67453,2721.5,2721.1,3.6749]
[1739992835189,0.7901,2721.5,2721.1,3.6749]
[1739992835692,0.7901,2721.5,2721.2,3.67478]
[1739992835887,0.06500856,2721.4,2721.2,3.67478]
[1739992836431,4.47539,2721.7,2721.2,3.67478]
[1739992836617,0.06509801,2721.6,2721.0,3.67503]
[1739992836788,3.73946801,2721.6,2721.0,3.67503]
[1739992836993,3.73946801,2721.6,2721.1,3.67497]
[1739992837413,0.06509801,2721.6,2721.2,3.67477]
[1739992837593,0.27411484,2721.5,2721.3,3.6746]
[1739992837789,0.06500856,2721.4,2721.3,3.6746]
[1739992837990,0.06500856,2721.4,2721.2,3.67477]
[1739992838197,0.06500856,2721.4,2721.0,7.35002]
[1739992838433,0.06500856,2721.4,2721.0,3.67499]
[1739992838599,0.06500856,2721.4,2721.0,7.35001]
[1739992838804,0.06500856,2721.4,2721.1,3.67495]
[1739992839422,0.06500856,2721.4,2720.8,3.67536]
[1739992839624,0.06500856,2721.4,2720.6,0.45116]
[1739992839625,0.792,2721.3,2720.6,0.076]
[1739992839826,0.0653324,2721.2,2720.9,3.67519]
[1739992840030,1.06611484,2721.3,2720.6,0.076]
[1739992840246,0.27411484,2721.3,2721.2,3.67484]
[1739992840547,0.27411484,2721.3,2721.2,4.48541]
[1739992841214,0.27411484,2721.6,2721.5,3.67444]
[1739992841523,0.27411484,2721.6,2721.5,4.44614]
[1739992841701,0.27411484,2721.6,2721.5,5.258204]
[1739992842643,3.67366,2722.1,2721.5,4.486414]
[1739992842804,3.67366,2722.1,2721.5,3.67435]
[1739992843004,0.06328259,2722.0,2721.2,5.29427]
[1739992843225,0.27411484,2722.2,2721.8,3.67401]
[1739992843411,0.06334499,2722.1,2721.8,3.67401]
[1739992843617,0.06334499,2722.1,2721.8,3.6739]
[1739992843924,0.33745983,2722.1,2721.8,3.6739]
[1739992844129,0.33745983,2722.1,2721.2,1.61947]
[1739992844439,0.8021,2721.9,2721.3,3.67469]
[1739992844639,0.06324487,2721.8,2721.4,3.67456]
[1739992844849,0.06324487,2721.8,2721.5,3.67436]
[1739992845348,0.27411484,2721.7,2721.6,3.67429]
[1739992845901,0.33731429,2721.7,2721.6,3.67429]
[1739992846846,0.40046277,2721.7,2721.6,3.67429]
[1739992847547,4.29e-06,2721.7,2721.6,4.487895]
[1739992847748,1e-05,2722.4,2722.3,3.67336]
[1739992847916,1e-05,2722.4,2721.7,4.43639]
[1739992848115,1e-05,2722.4,2722.2,3.67342]
[1739992848307,1e-05,2722.4,2722.3,3.67336]
[1739992848954,1e-05,2722.4,2722.2,3.67342]
[1739992849314,1e-05,2722.4,2722.0,3.67372]
[1739992849533,1e-05,2722.4,2721.8,3.67396]
[1739992849534,0.7716,2722.3,2721.8,3.67391]
[1739992849734,0.7716,2722.3,2721.7,0.7623]
[1739992849930,0.7716,2722.3,2721.9,3.67387]
[1739992850359,0.05740461,2722.2,2721.7,3.6741]
[1739992850559,0.05740461,2722.2,2721.9,3.67389]
[1739992850718,3.67367,2722.1,2721.4,0.7901]
[1739992850918,0.37310746,2722.0,2721.4,0.7901]
[1739992851159,0.05718844,2722.0,2721.5,3.67435]
[1739992851361,3.73102844,2722.0,2721.4,3.67456]
[1739992851662,0.05732799,2721.9,2721.4,3.67456]
[1739992852035,0.05732799,2721.9,2721.5,3.67433]
[1739992852231,4.50634,2721.8,2721.1,0.7882]
[1739992852572,0.05722014,2721.7,2721.1,4.46307]
[1739992852768,3.73140014,2721.7,2721.1,3.67487]
[1739992853064,3.73140014,2721.7,2721.0,3.67502]
[1739992853065,0.05722014,2721.7,2721.0,3.67499]
[1739992853255,0.05722014,2721.7,2721.1,3.6749]
[1739992853456,3.73146014,2721.7,2721.1,3.6749]
[1739992854768,3.73139014,2721.7,2721.2,3.67475]
[1739992855067,7.40565014,2721.7,2721.0,3.67499]
[1739992855268,3.73139014,2721.7,2721.1,3.67488]
[1739992855860,0.05722014,2721.7,2721.3,3.67462]
[1739992856022,0.05722014,2721.7,2721.6,3.6743]
[1739992856223,1e-05,2722.4,2721.5,0.8292]
[1739992856424,1e-05,2722.4,2722.3,3.67336]
[1739992856652,1e-05,2722.4,2722.2,3.67348]
[1739992856856,1e-05,2722.4,2722.1,3.67362]
[1739992857472,0.05282461,2722.3,2721.9,3.67383]
[1739992857671,0.05282461,2722.3,2721.7,3.6741]
[1739992857858,0.05282461,2722.3,2721.7,7.34818]
[1739992858054,4.53127461,2722.3,2721.6,3.6743]
[1739992858257,8.20470461,2722.3,2721.6,3.6743]
[1739992858457,4.53125461,2722.3,2721.6,3.6743]
[1739992858753,3.67373,2722.1,2721.3,6.67459]
[1739992858959,1.67826807,2722.3,2721.3,6.67459]
[1739992859132,7.40053048,2722.0,2721.3,6.67459]
[1739992859332,3.6739,2721.9,2721.3,3.67459]
[1739992859543,0.05282611,2721.9,2721.3,7.34918]
[1739992859728,0.7674,2721.8,2721.3,3.67459]
[1739992860170,0.05271827,2721.7,2721.3,3.67459]
[1739992860376,0.05271827,2721.7,2721.1,3.67495]
[1739992860579,0.7674,2721.8,2721.2,3.67478]
[1739992860756,0.05267355,2721.6,2721.1,3.67487]
[1739992861071,0.05259343,2721.5,2721.1,3.67487]
[1739992861372,0.05259343,2721.5,2721.2,3.67482]
[1739992861570,0.27470185,2721.7,2721.1,3.67487]
[1739992861775,0.05260108,2721.4,2721.2,3.67484]
[1739992861961,0.27470185,2721.7,2721.2,3.67484]
[1739992862162,0.05253865,2721.3,2721.2,3.67484]
[1739992862477,0.05253865,2721.3,2721.1,4.123742]
[1739992862478,0.05248556,2721.3,2721.1,4.123742]
[1739992862992,0.05248556,2721.3,2721.2,3.67484]
[1739992863133,0.05248556,2721.3,2721.2,4.5360832]
[1739992863334,3.67363,2722.1,2721.5,3.67434]
[1739992863528,0.75,2722.2,2721.6,3.67424]
[1739992863875,3.72648679,2722.1,2721.4,3.67446]
[1739992864256,3.67384,2722.0,2721.4,3.67446]
[1739992864454,0.05263198,2721.9,2721.5,3.67436]
[1739992864664,4.50335302,2722.1,2721.4,3.67446]
[1739992864877,3.94892677,2722.0,2721.4,3.67446]
[1739992865638,3.67397,2721.9,2721.4,3.67446]
[1739992865839,0.7583,2721.8,2721.2,3.67474]
[1739992866060,0.7583,2721.8,2721.0,1.60145]
[1739992866061,0.7583,2721.8,2721.3,3.67466]
[1739992866465,4.70741677,2721.8,2721.3,3.67466]
[1739992866979,1.03337677,2721.8,2721.3,3.67463]
[1739992867140,1.03337677,2721.8,2721.5,3.6744]
[1739992867564,1.03337677,2721.8,2721.4,3.67456]
[1739992867767,1.03337677,2721.8,2721.3,3.67462]
[1739992868044,0.27507677,2721.7,2721.3,3.67458]
[1739992868349,0.05241076,2721.6,2721.1,3.67489]
[1739992868554,0.05241076,2721.6,2720.6,0.9044516]
[1739992868555,0.755,2721.4,2720.6,0.076]
[1739992868871,0.755,2721.4,2720.7,3.67552]
[1739992868872,3.72707365,2721.3,2720.7,3.67552]
[1739992869082,3.72707365,2721.3,2720.8,3.67529]
[1739992869083,0.05235365,2721.3,2720.8,3.67529]
[1739992869450,0.32743042,2721.3,2721.2,3.67484]
[1739992869650,0.27507677,2721.3,2721.2,3.67484]
[1739992870876,0.05005219,2721.3,2721.2,3.67484]
[1739992871380,3.67418,2721.7,2721.2,3.67484]
[1739992871677,3.67418,2721.7,2721.1,3.67497]
[1739992871885,0.05029952,2721.6,2721.2,3.6748]
[1739992872544,0.32537629,2721.6,2721.2,3.6748]
[1739992872985,0.32537629,2721.6,2721.0,3.675]
[1739992873194,0.7783,2721.4,2720.9,3.67524]
[1739992873493,0.05003418,2721.3,2720.6,0.076]
[1739992873647,3.67485,2721.2,2720.7,3.67543]
[1739992873843,0.04992699,2721.1,2720.9,3.67516]
[1739992874039,0.7783,2721.4,2720.9,0.735052]
[1739992874388,0.27507677,2721.5,2721.4,3.67457]
[1739992874743,0.32525381,2721.5,2721.4,3.67457]
[1739992874942,0.32525381,2721.5,2721.2,3.67472]
[1739992875241,0.05017704,2721.5,2721.2,3.67472]
[1739992875441,0.8311,2722.0,2721.5,3.67435]
[1739992875655,0.04854451,2721.9,2721.5,3.67435]
[1739992876383,0.27524857,2721.8,2721.3,3.67471]
[1739992876584,0.27524857,2721.8,2721.7,3.67417]
[1739992876769,0.27524857,2721.8,2721.1,3.67496]
[1739992876987,0.27524857,2721.8,2721.5,3.67433]
[1739992878171,0.27524857,2721.7,2721.5,3.67433]
[1739992878377,3.94943857,2721.7,2721.0,0.7945]
[1739992878772,0.27524857,2721.7,2721.5,3.67438]
[1739992879171,0.04483981,2721.6,2721.5,3.67438]
[1739992879579,0.32008838,2721.6,2721.5,3.67438]
[1739992880664,0.27524857,2721.6,2721.5,3.67438]
[1739992881008,0.27524857,2721.6,2721.5,4.409275]
[1739992881882,0.31864987,2721.6,2721.5,4.409275]
[1739992883671,0.27524857,2721.6,2721.5,4.409275]
[1739992884307,0.27524857,2721.6,2721.5,3.67438]
[1739992884663,0.3185527,2721.6,2721.5,3.67438]
[1739992884868,0.27524857,2721.6,2721.5,4.46998]
[1739992885926,0.27524857,2721.6,2721.5,5.01998]
[1739992886065,8.57e-06,2721.6,2721.5,8.01998]
[1739992886265,8.57e-06,2721.6,2721.5,9.58211624]
[1739992886893,1e-05,2722.4,2722.3,4.45736]
[1739992887312,1e-05,2722.4,2722.3,5.00736]
[1739992887895,1e-05,2722.4,2721.5,1.56213624]
[1739992888095,1e-05,2722.4,2722.3,3.67336]
[1739992889196,1e-05,2722.4,2722.3,4.22336]
[1739992889601,1e-05,2722.4,2722.3,8.00736]
[1739992890615,1e-05,2722.4,2722.3,4.45736]
[1739992890795,1e-05,2722.4,2722.3,3.67336]
[1739992891126,1e-05,2722.4,2722.3,5.784044]
[1739992893623,1e-05,2722.4,2722.3,8.784044]
[1739992894599,1e-05,2722.4,2722.3,8.234044]
[1739992894930,1e-05,2722.4,2722.3,8.784044]
[1739992896918,0.1483868,2722.8,2722.7,11.93473239]
[1739992897126,6.8e-06,2722.8,2722.7,13.77649963]
[1739992897339,6.8e-06,2722.8,2722.7,13.87649963]
[1739992898418,6.8e-06,2722.8,2722.7,14.60018117]
[1739992899295,0.00150002,2724.0,2723.9,3.6712]
[1739992899596,0.1483868,2725.5,2725.4,3.66918]
[1739992899798,1.57138807,2725.9,2725.4,3.66918]
[1739992899799,0.82364269,2725.9,2725.8,3.66864]
[1739992900026,0.82364269,2725.9,2725.8,4.49884]
[1739992900239,0.82364269,2725.9,2725.8,3.66864]
[1739992900437,0.82364269,2725.9,2725.8,6.66864]
[1739992900638,0.82364269,2725.9,2725.8,7.702382]
[1739992900797,0.82364269,2725.9,2725.8,1.033742]
[1739992900997,0.82364269,2725.9,2725.7,6.66868]
[1739992901192,1.03215667,2727.3,2725.7,6.66868]
[1739992901193,0.74715667,2727.3,2725.7,6.66868]
[1739992901441,0.74715667,2727.3,2725.5,3.92681239]
[1739992901442,0.7571,2727.2,2725.6,3.66883]
[1739992901651,3.66798,2726.3,2725.1,3.66959]
[1739992901829,0.7571,2726.2,2724.9,0.7768]
[1739992902134,0.7571,2726.2,2725.1,6.66959]
[1739992902342,0.7571,2726.2,2725.0,3.66959]
[1739992902544,0.7571,2726.2,2724.9,0.7768]
[1739992902725,0.8139,2725.9,2724.8,3.66999]
[1739992902926,0.8139,2725.9,2724.7,3.95712]
[1739992903262,0.8139,2725.9,2724.7,0.287]
[1739992903549,4.49626,2726.4,2725.4,3.66905]
[1739992903699,4.117606,2726.3,2725.1,3.0]
[1739992903900,4.117606,2726.3,2724.8,4.74581239]
[1739992903901,4.4972,2725.7,2724.8,3.66994]
[1739992904839,3.66906,2725.5,2724.6,3.67025]
[1739992905144,3.66915,2725.5,2724.6,3.67025]
[1739992905445,0.8284,2725.7,2725.5,3.66904]
[1739992905876,0.8284,2726.2,2725.3,3.66929]
[1739992906214,0.8284,2726.2,2725.8,3.66862]
[1739992906409,0.8284,2726.2,2725.3,3.66932]
[1739992906721,0.7724,2726.8,2726.0,3.66836]
[1739992906947,0.7724,2726.8,2725.7,3.66866]
[1739992907150,0.7724,2726.8,2725.6,3.66887]
[1739992907322,3.66793,2726.4,2725.5,6.66902]
[1739992907523,0.366793,2726.3,2725.5,6.66902]
[1739992907746,3.66762,2726.6,2725.9,3.0]
[1739992908053,3.66762,2726.6,2725.8,3.66864]
[1739992908550,3.66762,2726.6,2725.7,3.0]
[1739992908755,3.66793,2726.4,2725.2,3.6694]
[1739992909048,0.7854,2726.5,2725.1,3.66958]
[1739992909049,0.8176,2726.1,2725.1,3.66958]
[1739992909248,3.66853,2725.9,2725.1,3.66958]
[1739992909452,3.66853,2725.9,2724.9,0.288]
[1739992909453,3.66866,2725.8,2724.9,3.95772]
[1739992909648,4.483967,2725.9,2725.0,3.66971]
[1739992909953,4.483967,2725.9,2724.8,4.46173]
[1739992909954,3.66901,2725.6,2724.8,3.66997]
[1739992910142,4.402799,2725.6,2724.9,3.0]
[1739992910448,4.402739,2725.6,2724.8,3.66997]
[1739992910833,3.66905,2725.5,2724.6,3.6702]
[1739992911035,0.7662,2725.4,2724.7,3.67011]
[1739992911205,0.7662,2725.8,2725.0,3.66972]
[1739992911410,0.7662,2725.8,2725.5,3.66904]
[1739992911834,0.7734,2726.6,2725.8,3.66862]
[1739992912153,3.6679,2726.4,2725.4,3.0]
[1739992912450,3.6679,2726.4,2725.5,3.66893]
[1739992913021,3.66819,2726.2,2725.5,3.66893]
[1739992913220,3.66819,2726.2,2725.3,3.66926]
[1739992913221,3.66842,2726.0,2725.4,3.0]
[1739992913768,0.8181,2726.1,2725.4,3.0]
[1739992914069,0.75,2726.9,2726.4,3.66782]
[1739992914262,0.75,2726.9,2726.7,3.66732]
[1739992914469,0.75,2726.9,2726.8,3.6673]
[1739992914836,0.75,2726.9,2726.5,3.6676]
[1739992915037,0.75,2726.9,2726.8,3.6673]
[1739992915266,0.75,2726.9,2726.7,3.66733]
[1739992915470,0.8297,2727.3,2726.7,3.66733]
[1739992915639,1.279307,2727.3,2726.6,3.66752]
[1739992915839,0.7502,2728.1,2727.5,3.66632]
[1739992916069,4.41576,2728.1,2727.3,3.66662]
[1739992916270,0.1483868,2728.3,2727.4,3.92681239]
[1739992916568,0.1483868,2728.3,2728.2,3.66542]
[1739992917079,0.1483868,2728.3,2728.0,3.66561]
[1739992917080,0.1483868,2728.3,2727.7,3.66595]
[1739992917220,0.1483868,2728.3,2727.6,3.66622]
[1739992917428,0.1483868,2728.3,2727.4,3.95647]
[1739992917429,0.9187868,2728.3,2727.4,3.95647]
[1739992917657,0.9187868,2728.3,2727.1,0.7757]
[1739992917658,4.5840768,2728.3,2727.1,0.7757]
[1739992917870,4.12382768,2728.2,2726.8,3.66728]
[1739992918160,0.45840768,2728.2,2727.1,3.66677]
[1739992918376,3.66556,2728.1,2726.9,3.66715]
[1739992918677,3.66556,2728.1,2727.2,3.66671]
[1739992918977,0.8184,2727.8,2727.0,3.0]
[1739992919284,0.8184,2728.2,2727.7,3.66598]
[1739992919581,0.1483868,2728.3,2728.2,3.66542]
[1739992919952,0.1483868,2728.3,2728.1,3.66555]
[1739992920148,0.1483868,2728.3,2727.9,3.6658]
[1739992920356,0.1483868,2728.3,2727.3,0.8239]
[1739992920551,0.1483868,2728.3,2727.7,3.66602]
[1739992920749,0.1483868,2728.3,2727.6,3.0]
[1739992920946,0.1483868,2728.3,2727.3,4.4905]
[1739992920947,3.66555,2728.1,2727.3,3.6666]
[1739992921163,0.7854,2728.0,2727.2,0.293]
[1739992921339,0.1483868,2728.3,2728.1,3.66546]
[1739992921549,0.1483868,2728.3,2728.2,3.66542]
[1739992923181,0.1483868,2728.3,2728.2,6.66542]
[1739992923350,0.1483868,2728.3,2728.2,7.21542]
[1739992923678,0.1483868,2728.3,2728.2,8.591808]
[1739992924275,6.8e-06,2728.3,2728.2,9.141808]
[1739992925383,6.8e-06,2728.3,2728.2,8.591808]
[1739992925542,6.8e-06,2728.3,2728.2,3.66542]
[1739992926567,6.8e-06,2728.3,2728.1,3.66546]
[1739992926756,6.8e-06,2728.3,2727.9,3.66577]
[1739992926962,0.8247068,2728.3,2727.7,3.66608]
[1739992927160,3.6655,2728.2,2727.3,3.66656]
[1739992927359,3.66574,2728.0,2727.1,3.96079]
[1739992927564,3.66566,2728.1,2727.3,3.66662]
[1739992927780,3.66606,2727.8,2726.6,0.7664]
[1739992927952,1.167506,2727.7,2726.6,0.7664]
[1739992928149,3.66638,2727.5,2726.5,0.294]
[1739992928354,0.8009,2727.7,2726.2,0.7664]
[1739992928355,3.66622,2727.6,2726.6,3.6675]
[1739992928582,3.66659,2727.4,2726.6,3.6675]
[1739992928786,4.47444,2727.3,2726.4,3.66775]
[1739992929106,3.66704,2727.0,2726.0,3.66831]
[1739992929251,0.8078,2727.3,2725.7,0.74629988]
[1739992929252,3.6674,2726.8,2725.7,0.74629988]
[1739992929448,3.6674,2726.8,2725.9,3.6685]
[1739992929675,3.66744,2726.7,2725.8,3.66855]
[1739992929874,3.66757,2726.6,2725.7,3.66876]
[1739992930075,1.174504,2726.9,2725.9,3.66841]
[1739992930277,0.8078,2726.9,2726.2,3.66799]
[1739992930488,3.6673,2726.8,2726.1,3.66811]
[1739992930846,3.6673,2726.8,2726.0,0.366841]
[1739992931067,4.481514,2726.8,2726.0,0.366841]
[1739992931463,0.814214,2726.8,2725.7,3.66874]
[1739992931695,0.765,2726.5,2725.8,3.66854]
[1739992931861,0.765,2726.5,2725.7,3.66874]
[1739992932062,4.43271,2726.5,2725.7,3.66877]
[1739992932777,3.66812,2726.2,2725.3,7.33848]
[1739992932985,3.66812,2726.2,2725.4,4.403008]
[1739992933183,3.66753,2726.7,2725.4,0.733848]
[1739992933349,0.7595,2726.1,2725.9,3.66842]
[1739992933690,0.7595,2727.2,2726.0,3.66837]
[1739992933906,0.7595,2727.2,2725.4,3.0]
[1739992933907,0.7595,2727.2,2725.6,3.7856]
[1739992934082,0.7595,2727.2,2726.5,3.66759]
[1739992934256,0.442618,2727.1,2726.3,3.66791]
[1739992934457,4.109528,2727.1,2726.3,3.66791]
[1739992934783,4.109528,2727.1,2726.4,3.66774]
[1739992934784,0.442618,2727.1,2726.4,3.66774]
[1739992934953,0.442618,2727.1,2726.3,3.66791]
[1739992935155,0.7595,2727.2,2726.9,3.66716]
[1739992935361,0.7595,2727.2,2727.1,3.66689]
[1739992935599,4.47624,2728.1,2727.1,3.66681]
[1739992935762,4.47624,2728.1,2726.1,7.92927477]
[1739992935763,0.8106,2727.6,2726.6,3.66757]
[1739992935949,0.8106,2727.2,2726.4,3.66774]
[1739992936701,0.8106,2727.2,2726.6,3.66748]
[1739992936867,3.66701,2727.1,2726.3,3.66797]
[1739992937069,3.66701,2727.1,2725.8,6.66861]
[1739992937070,0.447761,2727.1,2726.5,3.66759]
[1739992937286,0.8106,2727.2,2726.9,3.66712]
[1739992937667,0.8106,2727.2,2727.1,3.66689]
[1739992937896,0.7786,2727.9,2727.2,3.66673]
[1739992938093,0.7786,2727.6,2726.4,3.66784]
[1739992938299,0.7786,2727.6,2726.9,3.66716]
[1739992938596,0.7786,2727.6,2727.5,3.66636]
[1739992938793,0.7786,2727.6,2727.3,3.66652]
[1739992938993,0.7786,2727.6,2727.1,3.66678]
[1739992939170,0.7786,2727.6,2727.2,3.66667]
[1739992939367,0.7786,2727.6,2727.4,3.66638]
[1739992939556,0.7786,2727.6,2727.5,3.66636]
[1739992939997,0.7786,2727.6,2727.2,3.66668]
[1739992940566,0.7786,2727.6,2726.7,0.4960364]
[1739992940787,0.7697,2728.0,2727.4,3.66641]
[1739992941185,1.213226,2728.0,2727.2,3.66668]
[1739992941371,1.213226,2728.0,2727.3,3.66662]
[1739992941605,4.879006,2728.0,2726.7,4.1634364]
[1739992942006,1.213226,2728.0,2727.0,3.66696]
[1739992942203,0.8156,2727.7,2726.6,3.66754]
[1739992942369,0.8156,2727.7,2727.4,3.66645]
[1739992942576,3.66657,2727.4,2726.6,3.66748]
[1739992942776,0.8156,2727.3,2726.6,3.66755]
[1739992943314,3.66688,2727.2,2726.4,3.66776]
[1739992943483,3.66676,2727.2,2726.5,3.66768]
[1739992943688,3.66692,2727.1,2726.2,3.66799]
[1739992944077,0.7586,2726.8,2726.3,3.66793]
[1739992944315,0.7586,2726.8,2726.3,4.401542]
[1739992944475,0.7586,2726.8,2726.3,0.733592]
[1739992944815,0.7586,2726.8,2726.6,3.66753]
[1739992945018,0.7586,2726.8,2726.6,3.66748]
[1739992945615,0.7586,2726.8,2726.4,7.33548]
[1739992945821,0.7586,2726.8,2726.3,0.733592]
[1739992946117,0.7586,2726.8,2726.3,3.66789]
[1739992946412,0.7586,2726.8,2725.9,3.66851]
[1739992946598,3.66747,2726.7,2726.0,4.035201]
[1739992946805,3.66758,2726.6,2725.9,3.66849]
[1739992947138,0.7632,2726.3,2725.6,3.66879]
[1739992947289,4.43118,2726.3,2725.6,3.66879]
[1739992947476,3.66811,2726.2,2725.5,3.66904]
[1739992948026,3.66811,2726.2,2725.4,3.6691]
[1739992948209,3.66818,2726.2,2725.4,4.12258294]
[1739992948390,4.43118,2726.3,2725.4,4.12258294]
[1739992948593,4.43118,2726.3,2725.5,3.66903]
[1739992948903,3.66834,2726.1,2725.4,4.12262294]
[1739992949109,3.66834,2726.1,2725.4,0.45348294]
[1739992949110,3.66843,2726.0,2725.4,0.45348294]
[1739992949475,3.66886,2725.7,2724.9,3.66975]
[1739992949723,3.66892,2725.6,2724.9,3.66975]
[1739992950022,0.7632,2725.5,2725.1,3.66951]
[1739992950230,0.7632,2725.5,2725.1,3.66947]
[1739992950419,0.7632,2725.5,2725.0,3.66972]
[1739992950712,0.7632,2725.5,2724.8,3.66997]
[1739992950876,0.7632,2725.5,2724.8,0.7707041]
[1739992951080,0.7632,2725.5,2724.9,3.66977]
[1739992951279,0.7632,2725.5,2724.9,3.66985]
[1739992951480,4.43232,2725.5,2724.9,3.66985]
[1739992951675,0.7632,2725.5,2724.8,0.7707041]
[1739992951926,0.7632,2725.5,2724.9,3.66972]
[1739992952418,0.7632,2725.5,2724.9,7.33949]
[1739992952716,0.7632,2725.5,2724.9,3.66972]
[1739992952893,0.7632,2725.5,2725.1,3.66958]
[1739992953217,0.7632,2725.5,2724.9,3.66972]
[1739992953411,0.7632,2725.5,2725.0,3.66965]
[1739992953616,0.7632,2725.5,2724.4,0.7542]
[1739992953916,0.7632,2725.5,2725.1,3.66952]
[1739992954124,0.7632,2725.5,2725.2,3.66945]
[1739992954321,0.7632,2725.5,2724.9,3.66977]
[1739992954689,5.24243,2725.5,2724.7,3.67005]
[1739992954917,4.43234,2725.5,2724.8,3.66991]
[1739992955117,8.10147,2725.5,2724.8,3.66991]
[1739992955326,4.43233,2725.5,2724.5,3.67027]
[1739992955485,0.7646,2725.3,2724.5,3.67027]
[1739992955680,0.7646,2725.1,2724.6,3.67022]
[1739992956109,0.7646,2725.1,2724.8,3.66986]
[1739992956411,0.7646,2725.1,2724.9,3.66984]
[1739992956634,0.7646,2725.1,2724.9,3.66985]
[1739992956924,3.66853,2725.9,2725.2,3.6694]
[1739992957120,7.4748,2726.0,2725.3,3.66932]
[1739992957529,3.66855,2725.9,2725.2,3.6694]
[1739992957728,0.293,2726.1,2724.9,3.66974]
[1739992957729,3.66864,2725.8,2724.9,3.66974]
[1739992958030,1.134664,2725.7,2725.1,3.6695]
[1739992958187,1.134664,2725.7,2725.0,3.66964]
[1739992958387,3.66892,2725.6,2724.9,3.66976]
[1739992958590,3.66898,2725.6,2724.9,7.33955]
[1739992958932,0.4803584,2725.5,2724.9,3.66976]
[1739992959085,0.7678,2725.7,2724.6,3.67026]
[1739992959281,0.7678,2725.7,2724.6,3.67016]
[1739992959477,0.7678,2725.7,2725.1,7.33898]
[1739992959720,4.4366,2725.7,2724.5,3.67034]
[1739992960223,0.7656,2725.5,2724.8,3.66988]
[1739992960396,0.7656,2725.5,2725.0,7.33935]
[1739992960723,4.43469,2725.5,2724.8,7.33979]
[1739992961020,5.245057,2725.5,2724.8,7.3398]
[1739992961428,5.245057,2725.5,2724.8,3.66989]
[1739992961625,1.575967,2725.5,2724.9,3.66981]
[1739992961820,1.575967,2725.5,2724.9,7.33959]
[1739992962118,5.245077,2725.5,2724.9,3.66978]
[1739992963330,8.914237,2725.5,2724.9,3.66978]
[1739992963629,4.5606537,2725.4,2724.8,3.66998]
[1739992963813,3.66953,2725.2,2724.5,7.34063]
[1739992963988,0.7796,2725.1,2724.5,3.6703]
[1739992964184,3.66973,2725.0,2723.9,3.67115]
[1739992964496,4.44946,2724.9,2724.3,3.67059]
[1739992965584,0.7796,2724.7,2723.4,1.56679612]
[1739992965826,3.67036,2724.6,2723.8,3.6712]
[1739992966127,0.7796,2724.5,2723.8,3.6712]
[1739992966625,0.7796,2724.5,2723.9,3.67118]
[1739992966823,1.65070948,2724.5,2724.0,3.67095]
[1739992967327,1.65070948,2724.5,2724.2,3.67073]
[1739992967626,0.7796,2724.5,2723.8,3.67128]
[1739992968335,4.48823,2724.3,2723.7,3.67145]
[1739992968544,0.8175,2724.3,2723.1,4.45554]
[1739992968828,0.8175,2724.3,2723.9,3.67111]
[1739992969031,0.8175,2724.3,2723.9,3.6711]
[1739992969593,0.8175,2724.3,2724.0,3.67099]
[1739992970027,0.8175,2724.3,2723.9,7.34222]
[1739992970249,0.8175,2724.3,2724.2,3.6708]
[1739992970543,0.8175,2724.3,2724.1,3.67093]
[1739992970720,0.8175,2724.3,2724.1,3.67085]
[1739992971593,0.8175,2724.3,2723.7,3.67145]
[1739992971796,1.2663,2724.3,2723.5,3.67174]
[1739992971993,3.67095,2724.1,2723.4,3.67175]
[1739992972207,0.7984,2724.0,2723.5,3.67172]
[1739992972894,0.7984,2724.0,2723.6,3.67148]
[1739992973120,0.7984,2724.0,2723.7,3.67134]
[1739992973329,0.7984,2724.0,2723.8,3.67131]
[1739992973512,0.7984,2724.0,2723.9,3.6712]
[1739992973828,0.7568,2724.9,2723.5,0.7628]